Workbook

Sheet Výdavky
B1: Rozpočet podujatia [Názov podujatia] | H1: VÝDAVKY
B3: CELKOVÉ VÝDAVKY | G3: Odhadované | H3: Skutočné
G4: =SUM(C11,C19,C25,C32,G11,G19,G24) -> 882.00 EUR | H4: =SUM(D11,D19,D25,D32,H11,H19,H24) -> 333.00 EUR
B6: Priestory | C6: Odhadované | D6: Skutočné | F6: Občerstvenie | G6: Odhadované | H6: Skutočné
B7: Poplatky za miestnosť a sálu | C7: 500.00 EUR | F7: Strava
B8: Personál priestorov | F8: Nápoje | G8: 20.00 EUR
B9: Vybavenie | F9: Obrusy | H9: 20.00 EUR
B10: Stoly a stoličky | F10: Personál a výpomoc
B11: Celková hodnota | C11: =SUBTOTAL(109,Tabuľka1[Odhadované]) -> 500.00 EUR | D11: =SUBTOTAL(109,Tabuľka1[Skutočné]) -> 0.00 EUR | F11: Celková hodnota | G11: =SUBTOTAL(109,Tabuľka3[Odhadované]) -> 20.00 EUR | H11: =SUBTOTAL(109,Tabuľka3[Skutočné]) -> 20.00 EUR
B13: Výzdoba | C13: Odhadované | D13: Skutočné | F13: Program | G13: Odhadované | H13: Skutočné
B14: Kvety | C14: 200.00 EUR | D14: 300.00 EUR | F14: Vystupujúci
B15: Sviečky | F15: Moderátori | G15: 30.00 EUR
B16: Osvetlenie | F16: Cestovné
B17: Balóny | F17: Hotel
B18: Papierové materiály | F18: Iné
B19: Celková hodnota | C19: =SUBTOTAL(109,Tabuľka4[Odhadované]) -> 200.00 EUR | D19: =SUBTOTAL(109,Tabuľka4[Skutočné]) -> 300.00 EUR | F19: Celková hodnota | G19: =SUBTOTAL(109,Tabuľka5[Odhadované]) -> 30.00 EUR | H19: =SUBTOTAL(109,Tabuľka5[Skutočné]) -> 0.00 EUR
B21: Propagácia | C21: Odhadované | D21: Skutočné | F21: Ceny | G21: Odhadované | H21: Skutočné
B22: Grafické práce | F22: Stuhy, plakety a trofeje
B23: Fotokopírovanie a tlač | C23: 20.00 EUR | F23: Dary | G23: 100.00 EUR
B24: Poštovné | F24: Celková hodnota | G24: =SUBTOTAL(109,Tabuľka7[Odhadované]) -> 100.00 EUR | H24: =SUBTOTAL(109,Tabuľka7[Skutočné]) -> 0.00 EUR
B25: Celková hodnota | C25: =SUBTOTAL(109,Tabuľka6[Odhadované]) -> 20.00 EUR | D25: =SUBTOTAL(109,Tabuľka6[Skutočné]) -> 0.00 EUR
B27: Rôzne | C27: Odhadované | D27: Skutočné
B28: Telefón | D28: 13.00 EUR
B29: Doprava | C29: 12.00 EUR
B30: Kancelárske potreby
B31: Faxové služby
B32: Celková hodnota | C32: =SUBTOTAL(109,Tabuľka8[Odhadované]) -> 12.00 EUR | D32: =SUBTOTAL(109,Tabuľka8[Skutočné]) -> 13.00 EUR

Sheet Príjmy
B1: Rozpočet podujatia [Názov podujatia] | G1: PRÍJMY
B3: CELKOVÉ PRÍJMY | F3: Odhadované | G3: Skutočné
F4: =SUM(F11, F18, F25, F33) -> 1,936.00 EUR | G4: =SUM(G11,G18,G25, G33) -> 1,831.00 EUR
B6: VSTUPENKY
B7: Odhadovaný počet | C7: Skutočný počet | D7: Typ | E7: Cena | F7: Odhadovaná príjmy | G7: Skutočné príjmy
B8: 300 | C8: 278 | D8: Dospelí | E8: 5.00 EUR | F8: =B8*E8 -> 1,500.00 EUR | G8: =C8*E8 -> 1,390.00 EUR
B9: 197 | C9: 195 | D9: Deti | E9: 2.00 EUR | F9: =B9*E9 -> 394.00 EUR | G9: =C9*E9 -> 390.00 EUR
B10: 42 | C10: 51 | D10: Iné | E10: 1.00 EUR | F10: =B10*E10 -> 42.00 EUR | G10: =C10*E10 -> 51.00 EUR
B11: Celková hodnota | F11: =SUBTOTAL(109,Tabuľka9[Odhadovaná príjmy]) -> 1,936.00 EUR | G11: =SUBTOTAL(109,Tabuľka9[Skutočné príjmy]) -> 1,831.00 EUR
B13: REKLAMY V PROGRAME
B14: Odhadovaný počet | C14: Skutočný počet | D14: Typ | E14: Cena | F14: Odhadovaná príjmy | G14: Skutočné príjmy
B15: 12 | D15: Titulné strany | F15: =B15*E15 -> 0.00 EUR | G15: =C15*E15 -> 0.00 EUR
C16: 158 | D16: Polstrany | F16: =B16*E16 -> 0.00 EUR | G16: =C16*E16 -> 0.00 EUR
B17: 4 | D17: Štvrťstrany | F17: =B17*E17 -> 0.00 EUR | G17: =C17*E17 -> 0.00 EUR
B18: Celková hodnota | F18: =SUBTOTAL(109,Tabuľka10[Odhadovaná príjmy]) -> 0.00 EUR | G18: =SUBTOTAL(109,Tabuľka10[Skutočné príjmy]) -> 0.00 EUR
B20: VYSTAVOVATELIA A PREDAJCOVIA
B21: Odhadovaný počet | C21: Skutočný počet | D21: Typ | E21: Cena | F21: Odhadovaná príjmy | G21: Skutočné príjmy
B22: 23 | D22: Veľké stánky | F22: =B22*E22 -> 0.00 EUR | G22: =C22*E22 -> 0.00 EUR
B23: 354 | D23: Stredne veľké stánky | F23: =B23*E23 -> 0.00 EUR | G23: =C23*E23 -> 0.00 EUR
B24: 56 | D24: Malé stánky | F24: =B24*E24 -> 0.00 EUR | G24: =C24*E24 -> 0.00 EUR
B25: Celková hodnota | F25: =SUBTOTAL(109,Tabuľka11[Odhadovaná príjmy]) -> 0.00 EUR | G25: =SUBTOTAL(109,Tabuľka11[Skutočné príjmy]) -> 0.00 EUR
B27: PREDAJ POLOŽIEK
B28: Odhadovaný počet | C28: Skutočný počet | D28: Typ | E28: Cena | F28: Odhadovaná príjmy | G28: Skutočné príjmy
D29: Položky | F29: =B29*E29 -> 0.00 EUR | G29: =C29*E29 -> 0.00 EUR
B30: 123 | D30: Položky | F30: =B30*E30 -> 0.00 EUR | G30: =C30*E30 -> 0.00 EUR
D31: Položky | F31: =B31*E31 -> 0.00 EUR | G31: =C31*E31 -> 0.00 EUR
B32: 13 | D32: Položky | F32: =B32*E32 -> 0.00 EUR | G32: =C32*E32 -> 0.00 EUR
B33: Celková hodnota | F33: =SUBTOTAL(109,Tabuľka12[Odhadovaná príjmy]) -> 0.00 EUR | G33: =SUBTOTAL(109,Tabuľka12[Skutočné príjmy]) -> 0.00 EUR

Sheet Súhrn ziskov a strát
B1: Rozpočet podujatia [Názov podujatia] | G1: SÚHRN
G2: zisku a straty
C5: Odhadované | D5: Skutočné
B6: Celkové príjmy | C6: =Príjmy!F4 -> 1,936.00 EUR | D6: =Príjmy!G4 -> 1,831.00 EUR
B7: Celkové výdavky | C7: =Výdavky!G4 -> 882.00 EUR | D7: =Výdavky!H4 -> 333.00 EUR
B9: Celkový zisk (alebo strata) | C9: =C6-C7 -> 1,054.00 EUR | D9: =D6-D7 -> 1,498.00 EUR
